Cogmind - Beta 16 @@@ ROGUE MODE // 2025.10.26 @ 15:33:17 Player: FrigidRock Result: Escaped! Performance ------------- Evolutions (9) 4500 Regions Visited (27) 5400 Robots Destroyed (198) 990 Value Destroyed (12208) 12208 Prototype IDs (42) 840 Alien Tech Used (0) 0 Bonus (14408) 14408 TOTAL SCORE: 38346 Bonus ------- High Alert Combat Kills 1575 Follower Combat Kills 4176 Entered Garrisons 1400 Used RIF Installer 4000 Aligned with FarCom 300 Win 3000 Friendly Fire -43 Cogmind --------- Core Integrity 859/1600 Matter 34/300 Energy 36/100 System Corruption 9% Temperature Cool (0) Movement Core (50) Location To Epsilon Eridani Parts ------- > --- POWER (1) -------- (None) > --- PROPULSION (8) --- (None) > --- UTILITY (13) ----- Improved Hacking Suite Improved Hacking Suite Advanced Hacking Suite Relay Coupler [Cutter] (24) Relay Coupler [Grunt] (9) Relay Coupler [Sentry] (4) Relay Coupler [Proto] (9) > --- WEAPON (3) ------- (None) > --- INVENTORY (5) ---- Large Storage Unit Advanced Reaction Control System Enhanced Hardcell Cannon Smartbomb Launcher Peak State ------------ > --- POWER ------------ Light Quantum Reactor > --- PROPULSION ------- Combat Gravmag System Improved Gyrokinetic Inverter Antigrav Array Electron Diverter Electron Diverter > --- UTILITY ---------- Experimental Coolant Injector Large Storage Unit Advanced Trap Scanner Advanced Visual Processing Unit Improved Hacking Suite Relay Coupler [NC] Relay Coupler [Cutter] Relay Coupler [Grunt] Relay Coupler [Sentry] Relay Coupler [Specialist] Relay Coupler [Proto] > --- WEAPON ----------- Compact HERF Cannon Cooled Plasma Cannon Advanced Remote Datajack > --- INVENTORY -------- Particle Reactor Micro Antimatter Reactor Improved Gyrokinetic Inverter Q-thruster Impulse Thruster Array Advanced Coolant Injector Layered Heavy Armor Plating Hypervelocity Gauss Cannon Hypervelocity Gauss Cannon Heavy Proton Missile Launcher Smartbomb Launcher Improved Plasma Cutter [Rating: 138] Favorites ----------- Power Cooled Ion Engine Engine Cooled Ion Engine Power Core Light Nuclear Core Reactor Light Quantum Reactor Propulsion Aluminum Leg Treads Armored Treads Leg Aluminum Leg Hover Unit Antigrav Array Flight Unit Electron Diverter Utility Large Storage Unit Device Seismic Detector Storage Large Storage Unit Processor Improved Signal Interpreter Hackware Relay Coupler [Sentry] Protection Hardened Medium Armor Plating Weapon Mass Driver Energy Gun Variable Charge Gun Energy Cannon Advanced Beam Cannon Ballistic Gun Coil Gun Ballistic Cannon Mass Driver Launcher Rocket Launcher Special Weapon Remote Datajack Impact Weapon Mace Slashing Weapon Mining Claw Special Melee Weapon Advanced Datajack Build | -11 -10 -10 -9 -9 -9 -8 -8 -8 -8 -7 -7 -7 -7 -6 -6 -5 -5 -5 -5 -4 -4 -4 -3 -3 -3 -2 -1 ------- Run | Yrd Mat Min Mat Min Exi Min Mat Sto Gar Fac Gar Fac Gar Fac Gar Fac Was Fac Gar Fac Gar Fac Res Gar Res Res Acc Slots Evolved 18 | . . . 2 . . . 2 . . 2 . . . 2 . 2 . . . 2 . . 2 . . 2 2 Power . | . . . . . . . . . . . . . . . . . . . . . . . . . . . . Propulsion 6 | . . . 1 . . . 1 . . . . . . 1 . . . . . 1 . . . . . 1 1 Utility 11 | . . . 1 . . . 1 . . 2 . . . 1 . 2 . . . 1 . . 1 . . 1 1 Weapon 1 | . . . . . . . . . . . . . . . . . . . . . . . 1 . . . . Parts Attached 247 | 8 13 . 19 . . 1 7 . 12 1 28 2 14 2 19 17 3 7 10 1 18 10 17 12 10 3 13 Power 23 | 1 1 . 4 . . . . . 2 . 3 . . 1 1 1 1 . 3 . 1 . 1 1 . . 2 Engine 10 | 1 1 . 4 . . . . . 2 . . . . 1 1 . . . . . . . . . . . . Core 5 | . . . . . . . . . . . 3 . . . . 1 . . 1 . . . . . . . . Reactor 8 | . . . . . . . . . . . . . . . . . 1 . 2 . 1 . 1 1 . . 2 Propulsion 57 | 2 3 . 5 . . . 1 . . . 10 . 7 . 8 6 . 3 1 1 1 1 5 1 1 . 1 Treads 3 | . . . 3 . . . . . . . . . . . . . . . . . . . . . . . . Leg 32 | 2 3 . 2 . . . . . . . 7 . 7 . 8 3 . . . . . . . . . . . Wheel . | . . . . . . . . . . . . . . . . . . . . . . . . . . . . Hover 11 | . . . . . . . . . . . 1 . . . . 3 . 3 1 1 1 1 . . . . . Flight 11 | . . . . . . . 1 . . . 2 . . . . . . . . . . . 5 1 1 . 1 Utility 115 | 2 6 . 6 . . . 6 . 4 . 11 1 6 1 6 4 2 2 4 . 14 5 8 10 7 3 7 Device 34 | 2 5 . 3 . . . 3 . 2 . 2 . . . . 3 . 1 . . 3 . 4 . 1 1 4 Storage 4 | . 1 . 1 . . . . . . . . . . . . . . . . . . . 1 . . 1 . Processor 5 | . . . . . . . . . . . . . . 1 . . 1 . . . . . 1 2 . . . Hackware 64 | . . . . . . . 2 . 2 . 9 1 6 . 6 1 . . 3 . 10 4 2 8 6 1 3 Protection 8 | . . . 2 . . . 1 . . . . . . . . . 1 1 1 . 1 1 . . . . . Artifact . | . . . . . . . . . . . . . . . . . . . . . . . . . . . . Weapon 52 | 3 3 . 4 . . 1 . . 6 1 4 1 1 . 4 6 . 2 2 . 2 4 3 . 2 . 3 Energy Gun 8 | 2 . . 1 . . . . . 3 . 1 . . . 1 . . . . . . . . . . . . Energy Cannon 9 | . . . 2 . . 1 . . . . 1 . . . . 1 . . . . 1 1 1 . . . 1 Ballistic Gun 7 | 1 . . . . . . . . . 1 . 1 . . 2 2 . . . . . . . . . . . Ballistic Cannon 11 | . . . . . . . . . . . 2 . . . 1 1 . 1 1 . . 2 1 . . . 2 Launcher 5 | . . . 1 . . . . . 1 . . . . . . 1 . . 1 . . . 1 . . . . Special Weapon 6 | . . . . . . . . . 1 . . . 1 . . . . 1 . . 1 1 . . 1 . . Impact Weapon 2 | . 2 . . . . . . . . . . . . . . . . . . . . . . . . . . Slashing Weapon 1 | . 1 . . . . . . . . . . . . . . . . . . . . . . . . . . Piercing Weapon . | . . . . . . . . . . . . . . . . . . . . . . . . . . . . Special Melee Weapon 3 | . . . . . . . . . 1 . . . . . . 1 . . . . . . . . 1 . . Unidentified Prototypes 14 | . . . 3 . . . . . 1 . . 1 . . . 3 1 . . . . 1 2 . . 1 1 Parts Lost 50 | . 3 . 3 . . . . . 1 . 11 1 2 . 6 3 . . 1 . 2 . . 2 6 1 8 Power 5 | . . . . . . . . . . . 3 . . . 1 . . . . . . . . . . . 1 Propulsion 20 | . 1 . . . . . . . . . 5 . 1 . 5 1 . . . . . . . 1 1 1 4 Utility 23 | . 2 . 3 . . . . . 1 . 3 1 1 . . 1 . . 1 . 2 . . 1 4 . 3 Weapon 2 | . . . . . . . . . . . . . . . . 1 . . . . . . . . 1 . . Highest Loss Streak 5 | . 2 . 1 . . . . . 1 . 4 1 2 . 2 2 . . 1 . 1 . . 1 5 1 5 To Critical Strikes . | . . . . . . . . . . . . . . . . . . . . . . . . . . . . Average Backups 11 | 1 4 5 5 13 14 10 12 13 14 14 14 14 14 14 14 12 12 12 12 11 12 11 11 13 9 3 3 Power . | . 1 1 1 1 1 1 1 2 . . . . 1 1 . . . 1 1 1 1 2 1 1 . . . Propulsion . | . . . . 3 2 1 1 . . . . . . . . . 1 1 1 1 1 . . . . . . Utility 5 | . . 1 1 1 1 1 1 4 7 10 9 10 9 11 9 6 5 4 3 3 4 3 3 6 4 . 1 Weapon 3 | . 1 2 2 7 8 6 6 6 5 4 4 3 2 2 2 4 4 4 4 4 4 4 4 4 3 3 2 Tool/Special . | . . . . . . . . . . . . . . . . . . . . . . . . . . . . Unused Backups 25 | . 4 . . . 3 . . . . . 2 . . . 2 4 . 1 2 . 3 . 2 1 . . 1 Power 4 | . 2 . . . . . . . . . . . . . . 1 . . . . . . 1 . . . . Propulsion 5 | . 1 . . . 3 . . . . . . . . . . . . . . . . . 1 . . . . Utility 15 | . 1 . . . . . . . . . 2 . . . 2 2 . 1 2 . 3 . . 1 . . 1 Weapon . | . . . . . . . . . . . . . . . . . . . . . . . . . . . . Tool/Special 1 | . . . . . . . . . . . . . . . . 1 . . . . . . . . . . . Average Slot Usage (%) 86 | . 94 100 87 100 77 89 71 72 71 61 82 99 98 91 95 92 78 90 90 80 80 81 90 87 78 70 70 Engine 4 | . 13 14 11 11 11 11 9 9 9 7 1 . . 5 5 2 . . . . . . . . . . . Core 1 | . . . . . . . . . . . 4 7 7 . . 2 . . 3 . . . . . . . . Reactor 1 | . . . . . . . . . . . . . . . . . 4 5 1 4 5 5 4 4 4 4 3 Treads 3 | . . . 9 33 33 33 . . . . . . . . . . . . . . . . . . . . . Leg 11 | . 27 28 16 . . . . . . . 18 30 29 26 29 23 . . . . . . . . . . . Hover 5 | . . . . . . . . . . . . . . . . 2 17 21 21 21 20 21 8 . . . . Flight 3 | . . . . . . . 8 9 9 7 2 . . . . . . . . . . . 14 23 21 13 12 Device 8 | . 20 28 20 22 22 22 15 9 9 7 10 7 . . . 6 5 9 9 1 1 . 5 . . 4 12 Storage 5 | . 2 . 1 11 11 11 9 9 9 7 7 7 7 6 6 5 5 5 5 5 5 5 4 4 2 . . Processor 1 | . . . . . . . . . . . . . . 5 6 5 5 5 5 5 1 . 2 . 3 . . Hackware 22 | . . . . . . . 6 9 8 7 19 29 37 33 31 29 23 23 24 26 32 36 36 44 38 43 35 Protection 2 | . . . 7 . . . 4 9 8 7 1 . . . . . 2 5 4 5 5 3 . . . . . Energy Cannon 2 | . . . 5 22 . 8 9 9 8 1 . . . . . 2 5 2 . . 2 2 5 2 1 . . Ballistic Gun 1 | . . . . . . . . . . 5 1 . 6 . 2 4 . . . . . . . . . . . Ballistic Cannon 2 | . . . . . . . . . . . 6 6 1 5 4 . . 2 4 10 2 . . . . . 1 Special Weapon 1 | . . . . . . . . . 1 7 1 . 3 6 3 2 . . 1 . 3 3 3 4 2 . . Impact Weapon 1 | . 20 14 8 . . . . . . . . . . . . . . . . . . . . . . . . Slashing Weapon 1 | . 6 14 7 . . . . . . . . . . . . . . . . . . . . . . . . Peak Build Rating 138 | 9 13 9 25 25 25 28 54 52 58 60 72 47 55 56 69 88 90 99 105 110 117 115 138 134 127 114 129 Average Rating 64 | 6 9 9 12 25 20 25 50 52 54 59 49 46 49 55 58 79 80 92 97 107 109 109 127 121 108 96 102 On Entrance 62 | . 9 9 9 25 25 22 28 52 52 58 60 47 46 52 56 69 77 83 99 103 106 111 96 128 114 106 101 Avg Prop Armor Cover (%) 5 | . . . . . . . . . 22 . 5 . . . . . . . . . . . 4 . . . . Naked Turns . | . . . . . . . . . . . . . . . . . . . . . . . . . . . . Heaviest Build 75 | 11 17 13 38 38 38 38 46 46 47 44 47 40 39 42 47 43 53 61 65 65 75 68 74 53 41 31 39 Greatest Support 88 | 20 20 20 60 60 60 60 50 50 50 50 50 40 61 61 83 88 59 66 66 83 83 83 82 52 51 33 41 Greatest Overweight (x) 14 | . 1 . . . . . . . 14 . 3 . 1 . . . . . 1 . . . . 1 . 1 . Average Overweight (x) . | . . . . . . . . . . . . . . . . . . . . . . . . . . . . Largest Inventory Capacity 25 | 5 8 5 15 15 15 15 15 15 15 15 15 15 15 15 15 15 15 15 15 15 15 15 25 15 15 5 5 Average Capacity 13 | 5 5 5 6 15 15 15 15 15 15 15 15 15 15 15 15 15 15 15 15 15 15 15 15 15 10 5 5 Most Carried 15 | 3 6 5 13 13 15 15 15 13 15 15 15 15 15 15 15 15 15 15 15 13 15 14 15 15 15 5 5 Average Carried 12 | 1 4 5 5 13 14 13 12 12 14 14 14 14 14 14 14 13 13 14 13 12 13 12 13 14 10 4 4 Final Capacity 15 | 5 5 5 15 15 15 15 15 15 15 15 15 15 15 15 15 15 15 15 15 15 15 15 15 15 5 5 5 Final Carried 15 | 3 5 5 13 13 15 13 13 13 15 15 15 15 15 15 15 13 15 15 13 13 13 14 15 14 4 5 5 Class Distribution -------------------- 35% | Botlord-Mutant 30% | Mutant 19% | Bothacker-Mutant 9% | Botlord-Sprinter Dominant Class ---------------- Mutant | -10/Materials Mutant | -10/Mines Mutant | -9/Materials Mutant | -9/Mines Mutant | -9/Exiles Mutant | -8/Mines Mutant | -8/Materials Mutant | -8/Storage Mutant | -8/Garrison Bothacker-Mutant | -7/Factory Bothacker-Mutant | -7/Garrison Bothacker-Mutant | -7/Factory Bothacker-Mutant | -7/Garrison Botlord-Mutant | -6/Factory Botlord-Mutant | -6/Garrison Botlord-Mutant | -5/Factory Botlord-Mutant | -5/Waste Botlord-Mutant | -5/Factory Botlord-Mutant | -5/Garrison Botlord-Mutant | -4/Factory Botlord-Mutant | -4/Garrison Botlord-Mutant | -4/Factory Botlord-Sprinter | -3/Research Botlord-Sprinter | -3/Garrison Botlord-Sprinter | -3/Research Botlord-Sprinter | -2/Research Botlord-Sprinter | -1/Access Resources | -11 -10 -10 -9 -9 -9 -8 -8 -8 -8 -7 -7 -7 -7 -6 -6 -5 -5 -5 -5 -4 -4 -4 -3 -3 -3 -2 -1 ----------- Run | Yrd Mat Min Mat Min Exi Min Mat Sto Gar Fac Gar Fac Gar Fac Gar Fac Was Fac Gar Fac Gar Fac Res Gar Res Res Acc Matter Collected 8584 | 299 133 11 261 19 . 82 160 . 587 . 875 212 519 . 888 381 64 124 850 . 1026 645 260 847 114 133 94 Remotely . | . . . . . . . . . . . . . . . . . . . . . . . . . . . . Salvage Created 7332 | 95 669 11 815 . . 50 . . 545 . 599 86 195 . 1011 198 . 245 359 139 960 238 355 303 170 163 126 Parts 350 | 9 32 1 49 . . 8 . . 33 . 29 5 20 . 28 15 . 7 12 14 38 16 4 10 5 9 6 Haulers Intercepted 5 | . 1 . 2 . . . . . . . . . . . . . . . . . . 1 . . . . 1 Recyclers Shooed 8 | . . . 2 . . . 1 . . . . . . . . . . 1 . . . 1 2 . . 1 . Parts Field Recycled . | . . . . . . . . . . . . . . . . . . . . . . . . . . . . Retrieved Matter . | . . . . . . . . . . . . . . . . . . . . . . . . . . . . Parts Self-Destructed . | . . . . . . . . . . . . . . . . . . . . . . . . . . . . Prevented . | . . . . . . . . . . . . . . . . . . . . . . . . . . . . Parts Restored . | . . . . . . . . . . . . . . . . . . . . . . . . . . . . Kills | -11 -10 -10 -9 -9 -9 -8 -8 -8 -8 -7 -7 -7 -7 -6 -6 -5 -5 -5 -5 -4 -4 -4 -3 -3 -3 -2 -1 ------- Run | Yrd Mat Min Mat Min Exi Min Mat Sto Gar Fac Gar Fac Gar Fac Gar Fac Was Fac Gar Fac Gar Fac Res Gar Res Res Acc Combat Hostiles Destroyed 145 | . 12 . 15 . . 3 . . 25 . 17 2 9 . 7 2 . 2 20 3 12 4 . 4 1 7 . Melee 13 | . 7 . 6 . . . . . . . . . . . . . . . . . . . . . . . . Guns 9 | . . . . . . . . . 3 . 4 . 1 . . 1 . . . . . . . . . . . Cannons 45 | . . . 3 . . . . . 8 . 13 2 2 . 7 1 . . 1 3 3 1 . . 1 . . AOE 67 | . 1 . 4 . . 3 . . 13 . . . 6 . . . . 1 19 . 8 3 . 2 . 7 . Classes Destroyed 18 | 1 8 . 1 . . . . . 3 . . . . . . 1 . . 2 . 1 . . 1 . . . Worker 9 | . 2 1 2 . . 1 . . . . . . . . . . . 1 . . . 2 . . . . . Builder 6 | . 2 . 1 . . 1 . . . . . . . . . 1 . . . . . . . . . . 1 Tunneler 8 | 5 1 . 1 . . . . . . . . . . . . . . . . 1 . . . . . . . Hauler 5 | . 1 . 2 . . . . . . . . . . . . . . . . . . 1 . . . . 1 Recycler 12 | . 3 . 4 . . . . . . . . . . . . . . 1 . . . . 3 . 1 . . Mechanic 1 | . . . . . . . . . . . . . . . . 1 . . . . . . . . . . . Operator 2 | . 1 . 1 . . . . . . . . . . . . . . . . . . . . . . . . Watcher 5 | . 2 . . . . . . . . . . 1 . . . 1 . . . . . 1 . . . . . Swarmer 62 | . 4 . 10 . . 3 . . 12 . . . 5 . 4 . . . 12 . 4 3 . . . 5 . Cutter 1 | . . . . . . . . . . . . . . . . . . . 1 . . . . . . . . Saboteur 1 | . . . . . . . . . . . . . . . . . . . 1 . . . . . . . . Grunt 40 | . 8 . 3 . . . . . 1 . 10 1 2 . 4 . . 2 4 . 3 . . 2 . . . Brawler 2 | . . . . . . . . . . . . . . . 1 . . . . . 1 . . . . . . Sentry 10 | . . . 2 . . . . . 5 . 1 . . . . . . . 1 . 1 . . . . . . Specialist 1 | . . . . . . . . . . . . . . . . . . . . . . . . 1 . . . Hunter 4 | . . . . . . . . . 1 . 1 . . . . . . . 1 . 1 . . . . . . Programmer 26 | . . . . . . . . . 5 . 5 1 2 . . 2 . . . 3 4 1 . . 1 2 . Behemoth 2 | . . . . . . . . . . . . . . . . . . . . . 1 . . 1 . . . Savage 1 | . . . . . . . . . 1 . . . . . . . . . . . . . . . . . . Best Kill Streak 13 | 4 3 1 6 . . 3 . . 4 . 4 2 3 . 3 2 . 2 13 4 8 3 2 2 2 7 2 Combat Bots Only 13 | . 3 . 4 . . 3 . . 4 . 4 2 3 . 3 1 . 2 13 3 7 3 . 2 1 7 . Max Kills in Single Turn 3 | 1 2 1 3 . . 3 . . 2 . 1 1 3 . 1 2 . 1 2 2 3 3 1 1 1 3 1 Gunslinging . | . . . . . . . . . . . . . . . . . . . . . . . . . . . . Exploded 3 | . 1 . 2 . . 3 . . 2 . . . 3 . . . . 1 2 . 3 3 . 1 . 3 . Melee 1 | . 1 . 1 . . . . . . . . . . . . . . . . . . . . . . . . Uniques/NPCs Destroyed . | . . . . . . . . . . . . . . . . . . . . . . . . . . . . Combat | -11 -10 -10 -9 -9 -9 -8 -8 -8 -8 -7 -7 -7 -7 -6 -6 -5 -5 -5 -5 -4 -4 -4 -3 -3 -3 -2 -1 -------- Run | Yrd Mat Min Mat Min Exi Min Mat Sto Gar Fac Gar Fac Gar Fac Gar Fac Was Fac Gar Fac Gar Fac Res Gar Res Res Acc Hostile Shots Fired 1138 | . 86 . 47 . . 1 33 . 137 . 212 6 18 . 107 51 . 11 19 8 94 25 4 104 62 15 98 Missed 468 | . 27 . 13 . . . 18 . 58 . 68 1 5 . 33 24 . 9 5 2 32 12 2 66 33 8 52 Hits 670 | . 59 . 34 . . 1 15 . 79 . 144 5 13 . 74 27 . 2 14 6 62 13 2 38 29 7 46 Melee 10 | . . . . . . . 1 . . . . . . . . . . . 1 . . . . . . . 8 Projectile 660 | . 59 . 34 . . 1 14 . 79 . 144 5 13 . 74 27 . 2 13 6 62 13 2 38 29 7 38 AOE 12 | . . . . . . . . . . . . . 1 . . 5 . . 1 . . 2 . . . . 3 Critical Strikes 32 | . . . . . . . . . 6 . 6 . 1 . 4 3 . . . 1 4 1 . . 1 1 4 Part Disruptions 2 | . . . . . . . . . 1 . . . . . . 1 . . . . . . . . . . . Damage Taken 11103 | . 658 . 362 . . 10 308 . 929 37 1654 98 431 . 1161 826 . 36 161 132 1091 615 47 484 519 262 1282 Core 2180 | . 185 . 47 . . . . . 104 33 239 17 27 . 110 116 . 36 39 21 68 136 . 81 91 89 741 Absorbed by Shields 741 | . 78 . . . . . 41 . 98 . . . . . 212 . . . 31 . 208 . . 73 . . . Redirected to Shielding 4 | . . . 4 . . . . . . . . . . . . . . . . . . . . . . . . Regen/Repaired (Parts) 178 | . . . . . . . . . . . . . . . . . . 178 . . . . . . . . . Core Remaining (%) 75 | 100 . 26 . . . 88 . . 81 . . . 54 . 87 . . . 80 . . 80 . . 86 93 53 Volleys Fired 817 | 15 1 . 17 . . 5 12 . 79 13 80 9 35 2 111 29 . 25 42 6 97 83 51 73 9 8 15 Largest 2 | 2 1 . 2 . . 2 1 . 2 1 2 2 2 1 2 2 . 2 2 2 2 2 2 1 2 1 1 Hottest 225 | 90 20 . 136 . . 136 33 . 136 28 225 122 75 47 112 120 . 80 80 94 141 102 94 94 86 46 94 Shots Fired 1018 | 30 1 . 31 . . 7 12 . 126 13 127 13 41 2 130 40 . 27 46 11 115 85 53 73 12 8 15 Gun 214 | 30 1 . . . . . . . 22 10 58 4 12 1 51 19 . 2 4 . . . . . . . . Cannon 444 | . . . 28 . . 4 . . 68 . 58 8 4 1 43 13 . 20 11 11 52 41 44 11 10 3 14 Launcher 134 | . . . 3 . . 3 12 . 32 . . . 11 . 5 4 . 3 23 . 14 1 . 17 . 5 1 Special 226 | . . . . . . . . . 4 3 11 1 14 . 31 4 . 2 8 . 49 43 9 45 2 . . Kinetic 307 | 13 1 . . . . . . . . 10 75 11 16 2 55 23 . 22 15 11 32 4 2 . 3 . 12 Thermal 272 | 15 . . 28 . . 4 . . 68 . 41 1 . . . 9 . . . . 15 38 35 8 7 3 . Explosive 96 | . . . 3 . . 3 12 . 32 . . . 11 . 5 . . . 20 . 3 1 . . . 5 1 Electromagnetic 133 | 2 . . . . . . . . 22 . . . . . 39 4 . 3 3 . 31 . 7 20 . . 2 Robot Hit Streak 26 | 5 2 . 7 . . 4 . . 11 4 16 5 11 . 15 20 . 5 9 8 26 8 12 13 7 . 9 Robot Miss Streak 6 | 2 . . 3 . . 2 . . 6 1 3 2 5 . 6 3 . 1 3 3 3 3 3 2 1 . . Penetration Max 1 | . . . . . . . . . . . . . . . . 1 . . . . . . . . . . . Secondary Targets 1 | . . . . . . . . . . . 1 . . . . . . . . . . . . . . . . Max Gunslinging Chain 1 | . . . . . . . . . . . 1 . . . . . . . . . . . . . . . . Shots Hit Robots 633 | 19 44 1 31 . . 2 . . 61 9 76 9 21 . 92 22 . 16 20 5 79 41 16 49 7 9 4 Core Hits 296 | 5 13 1 22 . . 5 1 . 42 . 24 3 14 . 44 12 . 7 38 4 30 9 1 2 2 15 2 Critical Kills 6 | . 2 . 1 . . . . . . . . . . . . . . . . . . 1 . . 2 . . Critical Parts Destroyed 11 | . 6 . 1 . . . . . . . . . . . . 3 . . 1 . . . . . . . . Critical Strikes 29 | . 8 . 2 . . . . . . . 2 . . . . 3 . 2 1 1 7 1 . . 2 . . Meltdown 1 | . . . 1 . . . . . . . . . . . . . . . . . . . . . . . . Destroy 7 | . . . . . . . . . . . . . . . . 3 . . 1 . . 1 . . 2 . . Blast 11 | . . . . . . . . . . . 2 . . . . . . 2 . 1 6 . . . . . . Smash 9 | . 8 . 1 . . . . . . . . . . . . . . . . . . . . . . . . Sever 1 | . . . . . . . . . . . . . . . . . . . . . 1 . . . . . . Melee Attacks 111 | . 63 1 25 . . . . . . . . . . . . 2 . . 6 . . . . . . 12 2 Impact 76 | . 62 1 13 . . . . . . . . . . . . . . . . . . . . . . . . Slashing 13 | . 1 . 12 . . . . . . . . . . . . . . . . . . . . . . . . Piercing . | . . . . . . . . . . . . . . . . . . . . . . . . . . . . Sneak Attacks 32 | . 11 1 8 . . . . . . . . . . . . 1 . . 6 . . . . . . 3 2 Combat Hostiles . | . . . . . . . . . . . . . . . . . . . . . . . . . . . . Follow-up Attacks 11 | . 8 . 3 . . . . . . . . . . . . . . . . . . . . . . . . Damage Inflicted 21670 | 232 1968 72 1380 . . 239 45 . 1983 140 1985 274 706 . 1861 807 . 715 2866 326 2997 963 391 543 125 968 84 Guns 2357 | 232 12 . . . . . . . 184 140 663 44 106 . 765 206 . . 5 . . . . . . . . Cannons 6742 | . . . 309 . . 62 . . 890 . 1322 230 86 . 663 162 . 441 69 294 1174 357 391 83 125 . 84 Explosions 9790 | . 219 . 312 . . 177 45 . 909 . . . 514 . 433 439 . 274 2792 . 1642 606 . 460 . 968 . Melee 2565 | . 1737 72 756 . . . . . . . . . . . . . . . . . . . . . . . . Ramming 35 | . . . 3 . . . . . . . . . . . . . . . . 32 . . . . . . . Kinetic 4997 | 134 12 . . . . . . . . 140 1470 274 192 . 884 206 . 441 74 294 784 17 19 . 56 . . Thermal 3448 | 98 219 . 309 . . 62 . . 890 . 515 . . . 364 184 . . . . 181 460 66 31 69 . . Explosive 6454 | . . . 312 . . 177 . . 909 . . . 514 . 69 80 . . 2171 . 768 486 . . . 968 . Electromagnetic 4171 | . . . . . . . 45 . 184 . . . . . 544 337 . 274 621 . 1264 . 306 512 . . 84 Impact 2343 | . 1737 72 534 . . . . . . . . . . . . . . . . . . . . . . . . Slashing 222 | . . . 222 . . . . . . . . . . . . . . . . . . . . . . . . Piercing . | . . . . . . . . . . . . . . . . . . . . . . . . . . . . Highest Corruption 9 | . 1 1 1 1 1 1 . . 6 . 1 4 4 . . 4 4 4 . . 8 9 . 1 3 . 9 Average Corruption 3 | . 1 1 1 1 1 1 . . 4 . 1 1 4 . . 3 4 2 . . 5 8 . 1 1 . 4 Corruption Purged 4 | . . . . . . . . . . . . . . . . . . 4 . . . . . . . . . Corruption Blocked . | . . . . . . . . . . . . . . . . . . . . . . . . . . . . Effects 145 | . 1 1 8 2 4 1 . . 12 . 4 5 17 . . 12 10 5 . . 28 24 . 2 4 . 5 Message Errors 43 | . . . 3 1 1 . . . 4 . 2 1 5 . . 1 3 2 . . 9 6 . 1 1 . 3 Matter Fused 29 | . . . . 1 2 . . . 2 . 1 3 1 . . 1 3 1 . . 8 4 . . . . 2 Heat Flow Errors 11 | . . . . . . 1 . . 1 . . . 4 . . . . . . . 2 2 . 1 . . . Energy Discharges 19 | . . 1 3 . . . . . . . . 1 2 . . 3 2 . . . 1 4 . . 2 . . Parts Rejected 5 | . . . 1 . . . . . 1 . . . . . . 1 . . . . 1 1 . . . . . Parts Fused 2 | . . . . . . . . . . . . . . . . . . . . . 1 1 . . . . . Data Loss (minor) 19 | . 1 . 1 . 1 . . . 3 . . . 2 . . 2 . 2 . . 2 4 . . 1 . . Data Loss (major) 8 | . . . . . . . . . . . . . 2 . . 2 2 . . . 1 1 . . . . . Misfires 3 | . . . . . . . . . 1 . . . 1 . . 1 . . . . . . . . . . . Alerts 3 | . . . . . . . . . . . 1 . . . . . . . . . 1 1 . . . . . Weapon Failures 3 | . . . . . . . . . . . . . . . . 1 . . . . 2 . . . . . . Overload Shots 4 | . . . . . . . . . . . 4 . . . . . . . . . . . . . . . . Overflow Damage 1246 | . 538 . 196 . . . . . 6 . 99 20 23 . 30 12 . 13 139 8 48 59 54 . . 1 . Projectiles 246 | . . . . . . . . . 6 . 99 20 . . 22 5 . 13 . 8 7 12 54 . . . . Explosions 266 | . . . . . . . . . . . . . 23 . 8 7 . . 139 . 41 47 . . . 1 . Melee 734 | . 538 . 196 . . . . . . . . . . . . . . . . . . . . . . . . Knockbacks 38 | . 5 . 4 . . . . . . . 13 4 . . 6 . . 1 1 . 2 . 1 . 1 . . Impact 9 | . 5 . 4 . . . . . . . . . . . . . . . . . . . . . . . . Kinetic 27 | . . . . . . . . . . . 11 4 . . 6 . . 1 1 . 2 . 1 . 1 . . Secondary 2 | . . . . . . . . . . . 2 . . . . . . . . . . . . . . . . Self-Inflicted Damage 528 | . 94 . . . . . 109 . 24 . . . 41 . 56 49 . . 17 16 . 112 . 10 . . . Shots 14 | . 1 . . . . . 3 . 2 . . . 1 . 1 1 . . 2 . . 2 . 1 . . . Rammed 4 | . . . 2 . . . . . . . . . . . . . . . . 2 . . . . . . . Targets Rammed 5 | . . . 3 . . . . . . . . . . . . . . . . 2 . . . . . . . Kicked . | . . . . . . . . . . . . . . . . . . . . . . . . . . . . Crushed 1 | . . . 1 . . . . . . . . . . . . . . . . . . . . . . . . Highest Temperature 453 | 72 1 . 453 . . 88 1 . 427 9 210 39 227 . 53 24 . . . 63 296 302 150 128 30 . 35 Average Temperature 87 | 29 1 . 171 . . 31 1 . 110 6 90 11 78 . 15 16 . . . 31 95 104 46 48 13 . 20 Received Heat Transfer 1879 | . 224 . 78 . . . 69 . 62 . 690 36 93 . 185 57 . 18 . 9 142 48 . 39 93 18 18 Effects 4 | . . . 3 . . . . . . . . . . . . . . . . . 1 . . . . . . Shutdowns 1 | . . . 1 . . . . . . . . . . . . . . . . . . . . . . . . Energy Bleed 1 | . . . . . . . . . . . . . . . . . . . . . 1 . . . . . . Short Circuit 1 | . . . 1 . . . . . . . . . . . . . . . . . . . . . . . . Damage (minor) 1 | . . . 1 . . . . . . . . . . . . . . . . . . . . . . . . Siege Activations . | . . . . . . . . . . . . . . . . . . . . . . . . . . . . Martial Activations . | . . . . . . . . . . . . . . . . . . . . . . . . . . . . Shielding Activations . | . . . . . . . . . . . . . . . . . . . . . . . . . . . . Robots Disrupted . | . . . . . . . . . . . . . . . . . . . . . . . . . . . . Combat Hostiles . | . . . . . . . . . . . . . . . . . . . . . . . . . . . . Robots Corrupted 22 | . 6 . 3 . . . . . . . . . . . 5 . . 1 . . 4 . 1 2 . . . Combat Hostiles 9 | . 4 . 1 . . . . . . . . . . . . . . 1 . . 1 . . 2 . . . Parts Fried 32 | . 10 . 2 . . . . . . . . . . . 10 . . . . . 3 . 5 1 . . 1 Impact Corruptions 28 | . 22 . 6 . . . . . . . . . . . . . . . . . . . . . . . . Robots Melted 2 | . . . 1 . . . . . 1 . . . . . . . . . . . . . . . . . . Combat Hostiles 2 | . . . 1 . . . . . 1 . . . . . . . . . . . . . . . . . . Parts Melted 10 | 1 . . 1 . . . . . 7 . 1 . . . . . . . . . . . . . . . . Heat Transferred 4902 | 296 100 . 555 . . 111 . . 1369 . 814 . . . 400 50 . . . . 407 550 100 50 100 . . Parts Sabotaged 1 | . . . . . . . . . . . . . . . . . . . 1 . . . . . . . . Parts Stolen . | . . . . . . . . . . . . . . . . . . . . . . . . . . . . Parts Stripped . | . . . . . . . . . . . . . . . . . . . . . . . . . . . . Power Chain Reactions 6 | . . . . . . . . . . . . . . . 2 1 . . . . 1 1 . 1 . . . Alert | -11 -10 -10 -9 -9 -9 -8 -8 -8 -8 -7 -7 -7 -7 -6 -6 -5 -5 -5 -5 -4 -4 -4 -3 -3 -3 -2 -1 ------- Run | Yrd Mat Min Mat Min Exi Min Mat Sto Gar Fac Gar Fac Gar Fac Gar Fac Was Fac Gar Fac Gar Fac Res Gar Res Res Acc Maximum Alert Level 5 | . 1 . . . . . . . 3 2 3 2 3 2 3 3 1 . 5 3 5 5 3 2 1 1 . Low Security (%) 30 | 100 95 100 100 100 . 100 100 100 16 . . 19 8 . . . 35 100 7 . . . . . . 53 100 Level 1 16 | . 4 . . . . . . . 14 . 13 70 15 38 27 . 64 . 3 . . . 8 58 100 46 . Level 2 19 | . . . . . . . . . 26 100 61 9 25 61 28 28 . . 12 . . . 53 41 . . . Level 3 23 | . . . . . . . . . 42 . 25 . 50 . 43 71 . . 7 100 29 60 37 . . . . Level 4 3 | . . . . . . . . . . . . . . . . . . . 42 . 16 11 . . . . . Level 5 6 | . . . . . . . . . . . . . . . . . . . 26 . 53 27 . . . . . High Security . | . . . . . . . . . . . . . . . . . . . . . . . . . . . . Max Security . | . . . . . . . . . . . . . . . . . . . . . . . . . . . . Peak Influence 2036 | 10 212 27 176 46 . 111 133 58 1083 568 825 432 1036 543 1092 886 299 109 1667 1001 2036 1914 940 523 349 372 182 Initial 1068 | . . 27 . 46 . . 31 55 37 568 341 432 146 543 216 573 299 104 9 875 707 1068 932 231 288 186 182 Average 549 | 1 101 14 55 7 . 57 48 56 610 523 571 267 693 427 647 715 226 43 1151 873 1483 1279 644 383 280 234 98 Influence Increases 13579 | 25 477 5 526 . . 131 282 3 1076 30 694 143 1010 20 1076 894 . 108 1708 295 1449 1571 213 892 295 358 298 Destroy 0b10 Robot/C 5320 | . 240 . 300 . . 60 . . 520 20 360 80 520 . 420 300 . 60 760 80 560 620 . 300 15 105 . Destroy 0b10 Robot/NC 335 | 25 60 5 55 . . 10 . . . . . 5 . . 30 30 . 10 . 15 15 40 15 . 4 8 8 Destroy Leader 546 | . 56 . 64 . . 10 . . 20 . 10 22 40 . 30 54 . 10 30 20 50 84 . 20 8 16 2 Allied During Kill 1846 | . . . . . . . . . 6 4 1 18 125 . 171 181 . 7 481 93 221 313 . 162 . 63 . Successful Hack 357 | . 5 . . . . . 16 3 24 5 14 . 14 5 30 16 . 5 14 24 42 37 40 . 17 22 24 Select Force Hacks 30 | . . . . . . . . . . . . . . . . . . . . . . . 30 . . . . Disable Machine 624 | . 45 . . . . 30 30 . 15 . . . 45 15 15 105 . . 75 15 15 135 . 60 . 12 12 Anti-Garrison Action 1713 | . . . . . . . . . 200 . 150 . 200 . 300 . . . 100 . 350 150 . 150 113 . . Destroy Structure 1434 | . 41 . 17 . . 21 71 . 201 1 84 3 51 . 50 118 . 16 188 48 166 192 38 50 6 36 36 Partial Spotted 210 | . . . . . . . 15 . 30 . . 15 . . . 15 . . . . 15 . 45 15 12 24 24 Lose Combat Pursuer 1164 | . 30 . 90 . . . 150 . 60 . 75 . 15 . 30 75 . . 60 . 15 . 45 135 120 72 192 Influence Decreases 13427 | 25 407 73 408 120 . 50 230 78 51 625 357 759 183 747 293 1131 706 244 54 952 423 1830 1682 687 475 387 450 Entered New Map 6575 | . . 43 2 74 . . 50 78 21 515 147 393 63 493 93 519 556 45 4 792 303 968 845 77 225 147 122 Time Decay 3847 | 25 377 30 346 46 . 50 170 . . 110 . 356 . 254 . 422 150 199 . 100 . 392 262 . 190 130 238 Lost Part 490 | . 30 . 20 . . . . . 10 . 110 10 20 . 60 30 . . 10 . 20 . . 20 60 10 80 Lost Ally 1900 | . . . . . . . 10 . 20 . 100 . 100 . 140 160 . . 40 60 100 470 . 590 . 100 10 Purge Threat 615 | . . . 40 . . . . . . . . . . . . . . . . . . . 575 . . . . Squads Dispatched 49 | . 2 . 2 . . . 1 . . 1 . 1 . 1 . 6 . 3 . 4 . 12 3 . 4 3 6 Investigation 8 | . . . . . . . . . . . . . . . . . . 2 . 1 . 1 1 . 1 . 2 Extermination 12 | . . . . . . . . . . . . 1 . 1 . 2 . 1 . 1 . 1 2 . . 1 2 Reinforcement 16 | . 2 . 2 . . . 1 . . 1 . . . . . 2 . . . 1 . 2 . . 1 2 2 Assault 10 | . . . . . . . . . . . . . . . . 2 . . . . . 6 . . 2 . . Garrison 3 | . . . . . . . . . . . . . . . . . . . . 1 . 2 . . . . . Intercept . | . . . . . . . . . . . . . . . . . . . . . . . . . . . . Searches Triggered . | . . . . . . . . . . . . . . . . . . . . . . . . . . . . Construction Impeded 4 | . . . . . . . . . . . . . . . . 1 . . . 1 . 1 . . . 1 . Haulers Reinforced 1 | . . . . . . . . . . 1 . . . . . . . . . . . . . . . . . Active Scanning Responses . | . . . . . . . . . . . . . . . . . . . . . . . . . . . . Cargo Convoy Interrupts . | . . . . . . . . . . . . . . . . . . . . . . . . . . . . Stealth | -11 -10 -10 -9 -9 -9 -8 -8 -8 -8 -7 -7 -7 -7 -6 -6 -5 -5 -5 -5 -4 -4 -4 -3 -3 -3 -2 -1 --------- Run | Yrd Mat Min Mat Min Exi Min Mat Sto Gar Fac Gar Fac Gar Fac Gar Fac Was Fac Gar Fac Gar Fac Res Gar Res Res Acc Distress Signals 28 | . 1 . 4 . . . 3 . . 1 4 . . 1 . . . 1 . 1 . 3 2 . . 4 3 Communications Jammed . | . . . . . . . . . . . . . . . . . . . . . . . . . . . . Distress Signals . | . . . . . . . . . . . . . . . . . . . . . . . . . . . . Times Spotted 487 | . 21 . 24 . . 1 25 . 26 5 32 5 29 1 39 32 . 9 26 9 42 42 15 38 18 15 33 Peak Tracking Total 25 | . 5 . 6 . . 3 13 . 6 4 8 2 5 2 6 7 . 4 10 5 5 7 3 13 12 9 25 Tactical Retreats 42 | . 1 . 4 . . . 5 . 3 . 3 . 1 . 2 2 . . 3 . 1 . 2 5 2 3 5 Traps | -11 -10 -10 -9 -9 -9 -8 -8 -8 -8 -7 -7 -7 -7 -6 -6 -5 -5 -5 -5 -4 -4 -4 -3 -3 -3 -2 -1 ------- Run | Yrd Mat Min Mat Min Exi Min Mat Sto Gar Fac Gar Fac Gar Fac Gar Fac Was Fac Gar Fac Gar Fac Res Gar Res Res Acc Traps Triggered 45 | . . . 2 . . . . . 6 . 3 1 5 . 3 2 . . 5 1 7 2 1 5 2 . . Indirectly 4 | . . . . . . . . . . . . . . . . . . . . . 4 . . . . . . Trap Hack Attempts . | . . . . . . . . . . . . . . . . . . . . . . . . . . . . Triggered . | . . . . . . . . . . . . . . . . . . . . . . . . . . . . Disarmed . | . . . . . . . . . . . . . . . . . . . . . . . . . . . . Reprogrammed . | . . . . . . . . . . . . . . . . . . . . . . . . . . . . Reused . | . . . . . . . . . . . . . . . . . . . . . . . . . . . . Traps Extracted . | . . . . . . . . . . . . . . . . . . . . . . . . . . . . Installed . | . . . . . . . . . . . . . . . . . . . . . . . . . . . . Triggered . | . . . . . . . . . . . . . . . . . . . . . . . . . . . . Machines | -11 -10 -10 -9 -9 -9 -8 -8 -8 -8 -7 -7 -7 -7 -6 -6 -5 -5 -5 -5 -4 -4 -4 -3 -3 -3 -2 -1 ---------- Run | Yrd Mat Min Mat Min Exi Min Mat Sto Gar Fac Gar Fac Gar Fac Gar Fac Was Fac Gar Fac Gar Fac Res Gar Res Res Acc Machines Disabled 77 | . 3 . . . . 2 2 . 5 . 5 . 7 1 5 7 . . 8 1 11 10 . 7 1 1 1 Max in Single Turn 3 | . 3 . . . . 2 1 . 1 . 2 . 2 1 1 1 . . 1 . 1 3 . 1 1 1 1 Garrison Access 4 | . . . . . . . . . . . . . . . . . . . . . . 1 1 . 1 1 . Garrison Relay 27 | . . . . . . . . . 4 . 2 . 4 . 4 . . . 2 . 8 . . 3 . . . Phase Generator 1 | . . . . . . . . . . . 1 . . . . . . . . . . . . . . . . Machines Repaired . | . . . . . . . . . . . . . . . . . . . . . . . . . . . . Machines Dismantled 2 | . . . . . . . . . . . . . . . . . . . . . 1 . . 1 . . . Machines Sabotaged . | . . . . . . . . . . . . . . . . . . . . . . . . . . . . Overloaded Fab Kills . | . . . . . . . . . . . . . . . . . . . . . . . . . . . . Hacking | -11 -10 -10 -9 -9 -9 -8 -8 -8 -8 -7 -7 -7 -7 -6 -6 -5 -5 -5 -5 -4 -4 -4 -3 -3 -3 -2 -1 --------- Run | Yrd Mat Min Mat Min Exi Min Mat Sto Gar Fac Gar Fac Gar Fac Gar Fac Was Fac Gar Fac Gar Fac Res Gar Res Res Acc Machines Accessed 94 | . 7 . 2 . 2 . 5 1 3 3 3 2 3 3 2 5 . 4 3 5 4 10 9 1 5 4 8 Terminals 58 | . 5 . 1 . . . 4 . 3 . 3 1 3 2 2 2 . 1 3 2 4 6 5 1 2 1 7 Fabricators 6 | . . . . . . . . . . 1 . . . . . 2 . . . . . 1 . . . 1 1 Repair Stations 2 | . . . . . . . . . . . . . . . . . . 1 . 1 . . . . . . . Recycling Units 5 | . 2 . 1 . . . . . . 1 . . . . . . . . . . . . . . 1 . . Scanalyzers 10 | . . . . . . . 1 . . . . . . . . 1 . 1 . 1 . 2 2 . 1 1 . Garrison Access 11 | . . . . . . . . 1 . 1 . 1 . 1 . . . 1 . 1 . 1 2 . 1 1 . Total Hacks 191 | . 16 . 4 . 5 . 12 1 5 3 4 4 5 6 2 11 . 8 4 8 5 22 26 2 14 8 16 Successful 94 | . 4 . 2 . 5 . 8 1 3 3 2 1 1 3 2 6 . 4 2 4 3 10 15 . 6 5 4 Failed 96 | . 12 . 2 . . . 4 . 2 . 2 3 4 3 . 5 . 4 2 4 2 12 11 2 8 2 12 Catastrophic 25 | . 4 . . . . . 1 . . . . . 2 . . 4 . 2 1 1 . 4 1 . 2 2 1 Database Lockouts 1 | . . . . . . . . . . . . . . . . . . . . . . . . . . 1 . Manual 65 | . 11 . 3 . 1 . 10 . . . . 3 . 1 . 2 . 1 . 4 . 11 9 . 4 2 3 Terminals 114 | . 11 . 3 . . . 10 . 5 . 4 3 5 5 2 3 . 2 4 3 5 10 13 2 6 3 15 Fabricators 11 | . . . . . . . . . . 1 . . . . . 3 . . . . . 4 . . . 2 1 Repair Stations 4 | . . . . . . . . . . . . . . . . . . 2 . 2 . . . . . . . Recycling Units 8 | . 5 . 1 . . . . . . 1 . . . . . . . . . . . . . . 1 . . Scanalyzers 26 | . . . . . . . 2 . . . . . . . . 5 . 2 . 1 . 5 6 . 3 2 . Garrison Access 23 | . . . . . . . . 1 . 1 . 1 . 1 . . . 2 . 2 . 3 7 . 4 1 . Terminal Hacks 35 | . . . 1 . 5 . 2 . 3 . 2 . 1 1 2 . . . 2 . 3 . 6 . 1 2 4 Record 4 | . . . . . 4 . . . . . . . . . . . . . . . . . . . . . . Prototype ID Bank 1 | . . . . . . . . . . . . . . . . . . . . . . . . . . . 1 Open Door 2 | . . . . . . . . . 1 . . . . . . . . . . . . . . . . . 1 Level Access Points 3 | . . . . . . . . . . . . . . . . . . . . . . . 1 . . 1 1 Branch Access Points 5 | . . . . . . . 1 . . . . . . . . . . . . . . . 2 . 1 . 1 Emergency Access Points 5 | . . . . . . . . . 1 . 1 . . . 1 . . . 1 . 1 . . . . . . Unreport Threat 3 | . . . 1 . . . . . . . . . . . . . . . . . . . 2 . . . . Locate Traps 1 | . . . . . . . . . . . . . . 1 . . . . . . . . . . . . . Garrison Status 1 | . . . . . . . 1 . . . . . . . . . . . . . . . . . . . . Recall Extermination 1 | . . . . . . . . . . . . . . . . . . . . . . . 1 . . . . Recall Reinforcements 1 | . . . . . . . . . . . . . . . . . . . . . . . . . . 1 . Garrison Registry 2 | . . . . . . . . . . . 1 . . . . . . . . . 1 . . . . . . Patrol Navigation 4 | . . . . . . . . . 1 . . . 1 . . . . . 1 . 1 . . . . . . Security Stations 1 | . . . . . . . . . . . . . . . 1 . . . . . . . . . . . . Proto ID Catalog 1 | . . . . . 1 . . . . . . . . . . . . . . . . . . . . . . Fabricator Hacks 2 | . . . . . . . . . . 1 . . . . . 1 . . . . . . . . . . . Build 2 | . . . . . . . . . . 1 . . . . . 1 . . . . . . . . . . . Repair Station Hacks 3 | . . . . . . . . . . . . . . . . . . 2 . 1 . . . . . . . Scan Component 2 | . . . . . . . . . . . . . . . . . . 1 . 1 . . . . . . . Repair 1 | . . . . . . . . . . . . . . . . . . 1 . . . . . . . . . Recycling Unit Hacks 4 | . 2 . 1 . . . . . . 1 . . . . . . . . . . . . . . . . . Retrieve Components 4 | . 2 . 1 . . . . . . 1 . . . . . . . . . . . . . . . . . Scanalyzer 19 | . . . . . . . 2 . . . . . . . . 5 . 1 . 1 . 3 3 . 3 1 . Retrieve Study 19 | . . . . . . . 2 . . . . . . . . 5 . 1 . 1 . 3 3 . 3 1 . Garrison Access Hacks 13 | . . . . . . . . 1 . 1 . 1 . 1 . . . 1 . 1 . 1 5 . . 1 . Unlock Access 9 | . . . . . . . . 1 . 1 . 1 . 1 . . . 1 . 1 . 1 2 . . . . Seal Access 2 | . . . . . . . . . . . . . . . . . . . . . . . 1 . . 1 . Coupler Status 2 | . . . . . . . . . . . . . . . . . . . . . . . 2 . . . . Unauthorized Hacks 18 | . 2 . . . . . 4 . . . . . . 1 . . . . . 1 . 6 1 . 2 1 . Terminals 9 | . 2 . . . . . 4 . . . . . . 1 . . . . . . . 2 . . . . . Assimilate 1 | . . . . . . . 1 . . . . . . . . . . . . . . . . . . . . Botnet 7 | . 2 . . . . . 2 . . . . . . 1 . . . . . . . 2 . . . . . Operators 1 | . . . . . . . 1 . . . . . . . . . . . . . . . . . . . . Fabricators 5 | . . . . . . . . . . . . . . . . . . . . . . 4 . . . 1 . Report 2 | . . . . . . . . . . . . . . . . . . . . . . 1 . . . 1 . Liberate 1 | . . . . . . . . . . . . . . . . . . . . . . 1 . . . . . Fabnet 1 | . . . . . . . . . . . . . . . . . . . . . . 1 . . . . . Haulers 1 | . . . . . . . . . . . . . . . . . . . . . . 1 . . . . . Repair Stations . | . . . . . . . . . . . . . . . . . . . . . . . . . . . . Recycling Units . | . . . . . . . . . . . . . . . . . . . . . . . . . . . . Scanalyzers . | . . . . . . . . . . . . . . . . . . . . . . . . . . . . Garrison Access 4 | . . . . . . . . . . . . . . . . . . . . 1 . . 1 . 2 . . Restock 1 | . . . . . . . . . . . . . . . . . . . . . . . . . 1 . . Reprogram 2 | . . . . . . . . . . . . . . . . . . . . 1 . . . . 1 . . Eject 1 | . . . . . . . . . . . . . . . . . . . . . . . 1 . . . . Data Cores Recovered 1 | . . . . . . . . . . . . . . . . 1 . . . . . . . . . . . Used . | . . . . . . . . . . . . . . . . . . . . . . . . . . . . Hacking Detections 73 | . 6 . 1 . . . 3 1 3 2 2 2 3 2 . 5 . 3 2 3 1 9 9 1 5 2 8 Full Trace Events 7 | . 2 . . . . . . . . . . . . . . . . 2 . . . 1 . . . . 2 Feedback Events 2 | . 1 . . . . . . . . . . . . . . . . . . . . . . . . . 1 Corruption 2 | . 1 . . . . . . . . . . . . . . . . . . . . . . . . . 1 Feedback Blocked . | . . . . . . . . . . . . . . . . . . . . . . . . . . . . Robot Schematics Acquired . | . . . . . . . . . . . . . . . . . . . . . . . . . . . . Robots Built . | . . . . . . . . . . . . . . . . . . . . . . . . . . . . Authchips . | . . . . . . . . . . . . . . . . . . . . . . . . . . . . Time . | . . . . . . . . . . . . . . . . . . . . . . . . . . . . Total Robot Build Rating . | . . . . . . . . . . . . . . . . . . . . . . . . . . . . Part Schematics Acquired . | . . . . . . . . . . . . . . . . . . . . . . . . . . . . Parts Built 4 | . . . . . . . . . . 2 . . . . . 2 . . . . . . . . . . . Authchips . | . . . . . . . . . . . . . . . . . . . . . . . . . . . . Time 175 | . . . . . . . . . . 117 . . . . . 58 . . . . . . . . . . . Total Part Build Rating 28 | . . . . . . . . . . 14 . . . . . 14 . . . . . . . . . . . Part Studies Acquired 16 | . . . . . . . 2 . . . . . . . . 5 . . . 1 . 1 3 . 3 1 . Parts Repaired 1 | . . . . . . . . . . . . . . . . . . 1 . . . . . . . . . Time 68 | . . . . . . . . . . . . . . . . . . 68 . . . . . . . . . Parts Recycled . | . . . . . . . . . . . . . . . . . . . . . . . . . . . . Recycled Matter . | . . . . . . . . . . . . . . . . . . . . . . . . . . . . Retrieved Matter . | . . . . . . . . . . . . . . . . . . . . . . . . . . . . Retrieved Components 9 | . 4 . 2 . . . . . . 3 . . . . . . . . . . . . . . . . . Parts Scanalyzed . | . . . . . . . . . . . . . . . . . . . . . . . . . . . . Part Schematics Acquired . | . . . . . . . . . . . . . . . . . . . . . . . . . . . . Parts Damaged . | . . . . . . . . . . . . . . . . . . . . . . . . . . . . Bothacking | -11 -10 -10 -9 -9 -9 -8 -8 -8 -8 -7 -7 -7 -7 -6 -6 -5 -5 -5 -5 -4 -4 -4 -3 -3 -3 -2 -1 ------------ Run | Yrd Mat Min Mat Min Exi Min Mat Sto Gar Fac Gar Fac Gar Fac Gar Fac Was Fac Gar Fac Gar Fac Res Gar Res Res Acc Used RIF Installer 8 | . . . . . . . . . 2 . 1 . 1 . 1 . . . 1 . 1 . . 1 . . . Code Merge 1 | . . . . . . . . . . . . . 1 . . . . . . . . . . . . . . Command Fork 1 | . . . . . . . . . 1 . . . . . . . . . . . . . . . . . . Threat Obfuscator 1 | . . . . . . . . . . . . . . . . . . . . . . . . 1 . . . Watcher Feeds 1 | . . . . . . . . . . . . . . . . . . . 1 . . . . . . . . Patrol Navigation 1 | . . . . . . . . . . . 1 . . . . . . . . . . . . . . . . Structural Interface 1 | . . . . . . . . . . . . . . . 1 . . . . . . . . . . . . Program Shield 1 | . . . . . . . . . . . . . . . . . . . . . 1 . . . . . . Robots Hacked 114 | . . . . . . . . . 2 2 8 1 8 . 16 5 . 2 4 . 15 18 6 17 2 6 2 Non-combat 24 | . . . . . . . . . . . 2 . . . . . . . . . . 10 6 2 1 1 2 Combat 90 | . . . . . . . . . 2 2 6 1 8 . 16 5 . 2 4 . 15 8 . 15 1 5 . Robot Hacks Applied 129 | . . . . . . . . . 2 2 8 1 9 . 18 5 . 2 4 . 15 28 8 17 2 6 2 parse_system 11 | . . . . . . . . . . . . . . . 2 . . . . . . 4 1 1 2 1 . no_distress 9 | . . . . . . . . . . . . . . . . . . . . . . 6 1 . . . 2 ignore_repairs 3 | . . . . . . . . . . . . . . . . . . . . . . 3 . . . . . drop_inventory 1 | . . . . . . . . . . . . . . . . . . . . . . 1 . . . . . find_recycling 1 | . . . . . . . . . . . . . . . . . . . . . . . 1 . . . . purge_threat 2 | . . . . . . . . . . . . . . . . . . . . . . . 2 . . . . block_reporting 2 | . . . . . . . . . . . . . . . . . . . . . . . 2 . . . . mark_security 1 | . . . . . . . . . . . . . . . . . . . . . . 1 . . . . . scatter_targeting 1 | . . . . . . . . . . . . . . . . . . . . . . . . . . 1 . overload_power 3 | . . . . . . . . . . . . . . . . . . . . . . 1 1 1 . . . overwrite_iff 23 | . . . . . . . . . . 1 3 1 2 . 4 1 . . 2 . 2 3 . 4 . . . streamctrl_high 1 | . . . . . . . . . . . . . . . . . . . . . 1 . . . . . . formatsys_high 71 | . . . . . . . . . 2 1 5 . 7 . 12 4 . 2 2 . 12 9 . 11 . 4 . Relay Couplers Released 123 | . . . . . . . . . 14 . 12 . 15 . 15 . . . 9 . 30 4 4 14 5 1 . Ejected 4 | . . . . . . . . . . . . . . . . . . . . . . . 4 . . . . Machine Destruction 108 | . . . . . . . . . 14 . 8 . 15 . 15 . . . 9 . 30 1 . 14 1 1 . Programmers 11 | . . . . . . . . . . . 4 . . . . . . . . . . 3 . . 4 . . Attached 54 | . . . . . . . . . 2 . 9 1 6 . 6 1 . . 3 . 10 2 . 8 5 1 . Merged Code Value 224 | . . . . . . . . . . . . . 12 . 36 . . . 12 . 83 14 . 46 21 . . Fabnet Peak Effective % . | . . . . . . . . . . . . . . . . . . . . . . . . . . . . Robots Rewired 23 | . . . . . . . . . 2 . . . . . 1 . . . 6 . 4 . . 10 . . . Allies Hacked 5 | . . . . . . . . . . . 2 . . . . . . . . 2 1 . . . . . . Hacks Repelled . | . . . . . . . . . . . . . . . . . . . . . . . . . . . . Allies | -11 -10 -10 -9 -9 -9 -8 -8 -8 -8 -7 -7 -7 -7 -6 -6 -5 -5 -5 -5 -4 -4 -4 -3 -3 -3 -2 -1 -------- Run | Yrd Mat Min Mat Min Exi Min Mat Sto Gar Fac Gar Fac Gar Fac Gar Fac Was Fac Gar Fac Gar Fac Res Gar Res Res Acc Total Allies 139 | . . . . 1 . . 1 . 4 2 9 1 9 . 19 5 . 2 11 3 23 13 . 31 . 5 . Largest Group 21 | . . . . 1 1 . 1 . 2 4 3 4 5 . 9 9 1 3 10 10 18 21 . 11 . 4 . Highest-Rated Group 1123 | . . . . 31 31 . 10 . 51 64 48 64 131 . 375 317 49 139 629 558 984 1123 . 529 . 232 . Highest-Rated Ally 148 | . . . . 31 31 . 10 . 31 16 32 16 40 . 95 62 49 49 148 148 148 148 . 64 . 69 . Total Orders 31 | . . . . . . . . . . . . . . . . . . . 12 2 9 8 . . . . . STAY 18 | . . . . . . . . . . . . . . . . . . . 7 1 6 4 . . . . . FOLLOW 13 | . . . . . . . . . . . . . . . . . . . 5 1 3 4 . . . . . Ally Attacks 820 | . . . . . . . . . 9 10 9 29 86 . 68 67 . 5 69 18 116 222 . 101 . 11 . Total Damage 22741 | . . . . . . . . . 221 97 171 379 1399 . 1651 2278 . 119 1943 592 3332 6478 . 3547 . 534 . Kills 139 | . . . . . . . . . 1 1 1 2 19 . 15 16 . 1 18 3 16 33 . 11 . 2 . Allies Corrupted 7 | . . . . . . . . . . . . . . . . 1 . . . 1 1 2 . 1 . 1 . Allies Melted 3 | . . . . . . . . . . . 1 . . . . 1 . . . . 1 . . . . . . Intel | -11 -10 -10 -9 -9 -9 -8 -8 -8 -8 -7 -7 -7 -7 -6 -6 -5 -5 -5 -5 -4 -4 -4 -3 -3 -3 -2 -1 ------- Run | Yrd Mat Min Mat Min Exi Min Mat Sto Gar Fac Gar Fac Gar Fac Gar Fac Was Fac Gar Fac Gar Fac Res Gar Res Res Acc Active Infowar (turns) 4927 | 151 917 78 1289 354 894 141 182 . . . . . . . . 4 . . . . . . 484 . . . 433 Optics 428 | . . . . . . . . . . . . . . . . . . . . . . . 428 . . . . Sensors 182 | . 182 . . . . . . . . . . . . . . . . . . . . . . . . . . Terrain 246 | 54 185 . 7 . . . . . . . . . . . . . . . . . . . . . . . . Structural 2128 | . 550 78 1067 . . . . . . . . . . . . . . . . . . . . . . . 433 Traps 268 | . . . . . . . 85 . . . . . . . . . . . . . . . 183 . . . . Seismic 3381 | 151 325 78 1256 354 894 141 182 . . . . . . . . . . . . . . . . . . . . Jamming 4 | . . . . . . . . . . . . . . . . 4 . . . . . . . . . . . Robot Analysis Total . | . . . . . . . . . . . . . . . . . . . . . . . . . . . . Derelict Logs Recovered . | . . . . . . . . . . . . . . . . . . . . . . . . . . . . Drone Launches 5 | . . . . . . . . . . . . . . . . . . . . . . . . . . . 5 Drone Recoveries 4 | . . . . . . . . . . . . . . . . . . . . . . . . . . . 4 Exploration | -11 -10 -10 -9 -9 -9 -8 -8 -8 -8 -7 -7 -7 -7 -6 -6 -5 -5 -5 -5 -4 -4 -4 -3 -3 -3 -2 -1 ------------- Run | Yrd Mat Min Mat Min Exi Min Mat Sto Gar Fac Gar Fac Gar Fac Gar Fac Was Fac Gar Fac Gar Fac Res Gar Res Res Acc Turns Passed 17477 | 180 1030 78 1289 354 894 141 354 16 989 223 1102 814 990 556 1357 1029 309 443 818 213 1068 933 577 559 380 272 509 Spaces Moved 15016 | 102 559 63 489 164 524 73 568 29 990 195 640 173 669 128 843 743 454 420 799 261 1038 1267 843 777 482 637 1086 Core 41 | 1 . . . . . . . . 2 . . . . . . . . . . . . . . . . . 38 Treads 909 | . . . 148 164 524 73 . . . . . . . . . . . . . . . . . . . . . Legs 3823 | 101 559 63 341 . . . . . . . 421 173 669 128 843 525 . . . . . . . . . . . Wheels . | . . . . . . . . . . . . . . . . . . . . . . . . . . . . Hover 4684 | . . . . . . . . . . . . . . . . 218 454 420 799 261 1038 1267 227 . . . . Flight 5559 | . . . . . . . 568 29 988 195 219 . . . . . . . . . . . 616 777 482 637 1048 Fastest Speed 27 | 50 120 120 120 170 170 170 50 50 50 50 50 120 120 120 114 58 58 58 52 53 53 53 27 27 27 28 28 Average Speed 72 | 119 120 120 135 170 170 170 50 50 51 50 107 120 121 120 118 98 58 58 57 53 53 53 34 27 27 30 30 Slowest Speed 750 | 120 190 120 170 170 170 170 50 50 750 50 330 120 190 120 120 122 58 59 102 53 58 55 61 99 28 96 50 Overloaded Moves . | . . . . . . . . . . . . . . . . . . . . . . . . . . . . Propulsion Burnouts . | . . . . . . . . . . . . . . . . . . . . . . . . . . . . Robots Hopped 73 | . . . . . . . 15 . . . 3 . . . . . . . . . . . 12 1 18 6 18 Potential Cave-ins 7 | . . . . . . . 4 . . . . . . . . . . . . . . . 3 . . . . Cave-ins Triggered . | . . . . . . . . . . . . . . . . . . . . . . . . . . . . Exploration Rate (%) 42 | 3 87 24 37 30 90 22 56 8 75 8 66 6 84 5 87 20 94 9 83 8 94 32 43 44 19 19 30 Regions Visited 27 Branch Regions 5 Pre-discovered Areas 2 | . . 1 . . 1 . . . . . . . . . . . . . . . . . . . . . . Known Exits Taken 10 | . . . . . . . 1 1 . 1 . 1 . 1 . . . 1 . 1 . . 1 . 1 1 . Unknown Exits Taken 8 | 1 1 1 1 1 1 1 . . . . . . . . . . . . . . . 1 . . . . . Scrap Searched 2 | . . . . 1 . 1 . . . . . . . . . . . . . . . . . . . . . Spaces Dug 190 | . 1 . . . . . 105 . . . . . 8 . . 7 . 2 . 1 . 22 27 . 3 2 12 Terrain Destroyed 1035 | . 54 . 21 . . 24 116 . 229 . 87 3 65 . 37 65 . 7 160 7 54 46 27 5 3 13 12 Melee 1 | . 1 . . . . . . . . . . . . . . . . . . . . . . . . . . Projectile 121 | . . . . . . 1 . . 1 . 15 3 . . 3 7 . 7 2 7 6 25 27 . 3 2 12 AOE 912 | . 53 . 21 . . 23 116 . 228 . 72 . 65 . 34 58 . . 157 . 48 21 . 5 . 11 . Terrain Rammed . | . . . . . . . . . . . . . . . . . . . . . . . . . . . . Walls Destroyed . | . . . . . . . . . . . . . . . . . . . . . . . . . . . . Machines Disabled . | . . . . . . . . . . . . . . . . . . . . . . . . . . . . Actions | -11 -10 -10 -9 -9 -9 -8 -8 -8 -8 -7 -7 -7 -7 -6 -6 -5 -5 -5 -5 -4 -4 -4 -3 -3 -3 -2 -1 --------- Run | Yrd Mat Min Mat Min Exi Min Mat Sto Gar Fac Gar Fac Gar Fac Gar Fac Was Fac Gar Fac Gar Fac Res Gar Res Res Acc Total 20544 | 127 823 63 1043 239 530 84 611 30 1342 309 922 766 812 529 1081 1000 499 588 1108 324 1433 1478 1076 1083 699 706 1239 Wait 3603 | . 180 . 469 76 . 3 26 . 142 96 127 578 50 394 71 158 11 124 158 49 208 84 114 133 204 43 105 Move 14852 | 101 558 62 488 163 523 72 540 28 988 194 633 172 667 127 841 743 453 419 797 261 1037 1266 823 773 448 625 1050 Hop 59 | . . . . . . . 12 . . . 2 . . . . . . . . . . . 7 1 15 5 17 Pick Up 117 | 2 6 . 9 . 1 . 3 1 10 2 9 1 4 1 7 12 2 3 5 . 7 7 11 5 4 . 5 Fast Attach 157 | 8 11 . 17 . . . 6 . 1 1 20 1 4 1 8 9 3 5 5 . 12 6 15 5 7 3 9 Attach 96 | . . . . . . 3 1 . 5 . 6 1 5 1 6 6 . 1 4 1 11 9 10 7 5 4 10 Detach 61 | 1 . . . . 2 1 3 . 1 . 3 . 1 . . . . 1 4 . 8 7 9 4 2 5 9 Swap 124 | . 2 . 7 . . . 1 . 15 . 11 2 20 1 14 10 . 3 12 2 11 5 1 4 1 . 2 Drop 199 | . 14 . 14 . 4 . 7 1 6 3 10 1 13 2 10 23 3 5 11 1 12 11 20 8 4 1 15 Fire 817 | 15 1 . 17 . . 5 12 . 79 13 80 9 35 2 111 29 . 25 42 6 97 83 51 73 9 8 15 Melee 93 | . 51 1 19 . . . . . . . . . . . . 2 . . 6 . . . . . . 12 2 Ram 1 | . . . . . . . . . . . . . . . . . . . . 1 . . . . . . . Kick . | . . . . . . . . . . . . . . . . . . . . . . . . . . . . Crush 3 | . . . 3 . . . . . . . . . . . . . . . . . . . . . . . . Escape Stasis 264 | . . . . . . . . . 90 . 20 . 13 . 5 5 . . 54 3 15 . 15 44 . . . Rewire 82 | . . . . . . . . . 5 . 1 1 . . 8 3 27 2 10 . 7 . . 18 . . . Trap . | . . . . . . . . . . . . . . . . . . . . . . . . . . . . Miscellaneous 16 | . . . . . . . . . . . . . . . . . . . . . 8 . . 8 . . . Route ------- -11/Scrapyard -10/Materials (discovered 4 exits: *Mat x2 / [*Min] / [*Sub]) -10/Mines -9/Materials -9/Mines (discovered 2 exits: *Mat / *Exi) -9/Exiles -8/Mines -8/Materials (discovered 2 exits: *Sto x2) -8/Storage -8/Garrison (discovered 3 exits: *Fac x3) -7/Factory -7/Garrison (discovered 3 exits: *Fac x3) -7/Factory -7/Garrison (discovered 3 exits: *Fac x3) -6/Factory -6/Garrison (discovered 3 exits: *Fac x3) -5/Factory -5/Waste -5/Factory (discovered 3 exits: *Fac / *Upp / Gar) -5/Garrison (discovered 3 exits: *Fac x3) -4/Factory -4/Garrison (discovered 4 exits: *Res x3 / *Fac) -4/Factory -3/Research (discovered 6 exits: *Res x3 / Qua x2 / Gar) -3/Garrison -3/Research (discovered 3 exits: *Res / Qua x2) -2/Research (discovered 3 exits: *Acc x3) -1/Access (discovered 2 exits: *Sur / Com) To Epsilon Eridani History --------- Turn | Location | Event 14 | -11/Scrapyard | Discovered new exit (range 15) 181 | -11/Scrapyard | Entered Materials 307 | -10/Materials | Build established: Mutant 595 | -10/Materials | Core integrity fell below 50% 621 | -10/Materials | Discovered new exit (range 16) 874 | -10/Materials | Discovered new exit (range 5) 942 | -10/Materials | Discovered new exit (range 10) 1175 | -10/Materials | Discovered new exit (range 11) 1211 | -10/Materials | Entered Mines 1274 | -10/Mines | Discovered new exit (range 12) 1279 | -10/Mines | Learned location of Storage (-8) 1289 | -10/Mines | Entered Materials 1289 | -9/Materials | Evolved 2 slots: Propulsion x1, Utility x1 2237 | -9/Materials | Discovered new exit (range 15) 2578 | -9/Materials | Entered Mines 2641 | -9/Mines | Met a Derelict bent on vengeance 2839 | -9/Mines | Discovered new exit (range 6) 2848 | -9/Mines | Received a Mining Laser from a helpful Derelict 2916 | -9/Mines | Deemed a non-threat by the Exiles lab entrance 2916 | -9/Mines | Discovered new exit (range 5) 2932 | -9/Mines | Entered Exiles 2932 | -9/Exiles | Accompanied by 1 ally 2976 | -9/Exiles | Met 8R-AWN 3003 | -9/Exiles | Met EX-HEX 3066 | -9/Exiles | Met EX-DEC 3113 | -9/Exiles | Visited The Gauntlet 3443 | -9/Exiles | Learned location of Zion (-6) 3476 | -9/Exiles | Met EX-BIN 3503 | -9/Exiles | Aligned with FarCom system 3505 | -9/Exiles | Given EX-Vault access code 3544 | -9/Exiles | Opened EX-Vault 3559 | -9/Exiles | Found Flying Fortress v7 3593 | -9/Exiles | Warned to stay clear of 0b10 Research branches 3812 | -9/Exiles | Discovered new exit (range 10) 3826 | -9/Exiles | Left Exiles lab with Flying Fortress v7 3826 | -9/Exiles | Entered Mines 3947 | -8/Mines | Discovered new exit (range 12) 3967 | -8/Mines | Entered Materials 3967 | -8/Materials | Evolved 2 slots: Propulsion x1, Utility x1 4165 | -8/Materials | Discovered new exit (range 5) 4248 | -8/Materials | Identified exit to Storage 4321 | -8/Materials | Entered Storage 4328 | -8/Storage | Identified exit to Garrison 4337 | -8/Storage | Entered Garrison 4391 | -8/Garrison | Triggered checkpoint 4392 | -8/Garrison | Garrison Relay disabled 4421 | -8/Garrison | Triggered checkpoint 4685 | -8/Garrison | Triggered checkpoint 4688 | -8/Garrison | Discovered new exit (range 14) 4713 | -8/Garrison | Garrison Relay disabled 4761 | -8/Garrison | Triggered checkpoint 4830 | -8/Garrison | Discovered new exit (range 15) 4865 | -8/Garrison | Triggered checkpoint 4917 | -8/Garrison | Garrison Relay disabled 4971 | -8/Garrison | Triggered checkpoint 5052 | -8/Garrison | Discovered new exit (range 10) 5154 | -8/Garrison | Installed Relay Interface Framework 5190 | -8/Garrison | Garrison Relay disabled 5197 | -8/Garrison | Triggered checkpoint 5276 | -8/Garrison | Expanded RIF knowledge: Command Fork 5326 | -8/Garrison | Entered Factory 5326 | -7/Factory | Accompanied by 2 allies 5326 | -7/Factory | Evolved 2 slots: Utility x2 5436 | -7/Factory | Build established: Bothacker-Mutant 5470 | -7/Factory | Fabricated Impulse Thruster? 5549 | -7/Factory | Identified exit to Garrison 5549 | -7/Factory | Entered Garrison 5559 | -7/Garrison | Expanded RIF knowledge: Patrol Navigation 5570 | -7/Garrison | Lost 3 allies 5579 | -7/Garrison | Triggered checkpoint 5620 | -7/Garrison | Discovered new exit (range 10) 5664 | -7/Garrison | Garrison Relay disabled 5795 | -7/Garrison | Lost 4 parts (1p1n2u) 6203 | -7/Garrison | Lost 4 allies 6210 | -7/Garrison | Lost 3 parts (1p2n) 6307 | -7/Garrison | Discovered new exit (range 12) 6375 | -7/Garrison | Phase Generator disabled 6402 | -7/Garrison | Discovered new exit (range 7) 6402 | -7/Garrison | Discovered new exit (range 70) 6402 | -7/Garrison | Discovered new exit (range 61) 6407 | -7/Garrison | Garrison Relay disabled 6575 | -7/Garrison | Triggered checkpoint 6651 | -7/Garrison | Entered Factory 6651 | -7/Factory | Accompanied by 3 allies 7324 | -7/Factory | P-60 Hacker assimilated allied Trooper 4b 7459 | -7/Factory | Identified exit to Garrison 7465 | -7/Factory | Entered Garrison 7465 | -7/Garrison | Accompanied by 2 allies 7511 | -7/Garrison | Triggered checkpoint 7545 | -7/Garrison | P-60 Hacker assimilated allied Trooper 4d 7588 | -7/Garrison | Lost 3 allies 7603 | -7/Garrison | Garrison Relay disabled 7643 | -7/Garrison | Triggered checkpoint 7685 | -7/Garrison | Triggered checkpoint 7697 | -7/Garrison | Triggered checkpoint 7793 | -7/Garrison | Triggered checkpoint 7817 | -7/Garrison | Garrison Relay disabled 7862 | -7/Garrison | Discovered new exit (range 11) 7947 | -7/Garrison | Triggered checkpoint 8038 | -7/Garrison | Triggered checkpoint 8132 | -7/Garrison | Discovered new exit (range 10) 8167 | -7/Garrison | Triggered checkpoint 8215 | -7/Garrison | Garrison Relay disabled 8361 | -7/Garrison | Expanded RIF knowledge: Code Merge 8380 | -7/Garrison | Discovered new exit (range 11) 8410 | -7/Garrison | Garrison Relay disabled 8423 | -7/Garrison | Triggered checkpoint 8455 | -7/Garrison | Entered Factory 8455 | -6/Factory | Evolved 2 slots: Propulsion x1, Utility x1 8610 | -6/Factory | Identified exit to Garrison 8654 | -6/Factory | Build established: Botlord-Mutant 9011 | -6/Factory | Entered Garrison 9049 | -6/Garrison | Triggered checkpoint 9073 | -6/Garrison | Garrison Relay disabled 9126 | -6/Garrison | Expanded RIF knowledge: Structural Interface 9145 | -6/Garrison | Triggered checkpoint 9254 | -6/Garrison | Lost 7 allies 9281 | -6/Garrison | Triggered checkpoint 9329 | -6/Garrison | Discovered new exit (range 10) 9343 | -6/Garrison | Triggered checkpoint 9395 | -6/Garrison | Garrison Relay disabled 9414 | -6/Garrison | Found embedded Infiltrators 9478 | -6/Garrison | Triggered checkpoint 9552 | -6/Garrison | Discovered new exit (range 10) 9601 | -6/Garrison | Triggered checkpoint 9632 | -6/Garrison | Learned Factory security intel 9646 | -6/Garrison | Garrison Relay disabled 9776 | -6/Garrison | Garrison Relay disabled 9785 | -6/Garrison | Triggered checkpoint 9824 | -6/Garrison | Discovered new exit (range 2) 9825 | -6/Garrison | Identified exit to Factory 9976 | -6/Garrison | Found Relay Coupler [Proto] 10368 | -6/Garrison | Entered Factory 10368 | -5/Factory | Accompanied by 6 allies 10368 | -5/Factory | Evolved 2 slots: Utility x2 10668 | -5/Factory | First assault squad dispatched 10705 | -5/Factory | Fabricated Adv. Transmission Jammer (x2) 10986 | -5/Factory | Lost 5 allies 11397 | -5/Factory | Sucked down chute 11397 | -5/Factory | Entered Waste 11397 | -5/Waste | The area was eerily silent 11422 | -5/Waste | 1 allies followed down the chute 11620 | -5/Waste | Discovered new exit (range 16) 11695 | -5/Waste | Identified exit to Factory 11706 | -5/Waste | Entered Factory 11706 | -5/Factory | Accompanied by 1 ally 11788 | -5/Factory | Repaired Antigrav Array 11982 | -5/Factory | Discovered new exit (range 13) 11990 | -5/Factory | Identified exit to Upper Caves 11992 | -5/Factory | Discovered new exit (range 14) 12141 | -5/Factory | Identified exit to Garrison 12149 | -5/Factory | Entered Garrison 12149 | -5/Garrison | Accompanied by 3 allies 12160 | -5/Garrison | Expanded RIF knowledge: Watcher Feeds 12332 | -5/Garrison | Triggered checkpoint 12338 | -5/Garrison | Triggered checkpoint 12371 | -5/Garrison | Triggered checkpoint 12396 | -5/Garrison | Triggered checkpoint 12428 | -5/Garrison | Destroyed 13 combat bots 12498 | -5/Garrison | Triggered checkpoint 12531 | -5/Garrison | Garrison Relay disabled 12582 | -5/Garrison | Discovered new exit (range 14) 12630 | -5/Garrison | Triggered checkpoint 12649 | -5/Garrison | Spotted B-86 Titan 12651 | -5/Garrison | Rewired B-90 Cyclops 12652 | -5/Garrison | Rewired B-90 Cyclops 12696 | -5/Garrison | Discovered new exit (range 10) 12726 | -5/Garrison | Triggered checkpoint 12857 | -5/Garrison | Discovered new exit (range 8) 12860 | -5/Garrison | Identified exit to Factory 12967 | -5/Garrison | Entered Factory 12967 | -4/Factory | Accompanied by 8 allies 12967 | -4/Factory | Evolved 2 slots: Propulsion x1, Utility x1 13139 | -4/Factory | Identified exit to Garrison 13160 | -4/Factory | Garrison activated, responded to threat 13180 | -4/Factory | Entered Garrison 13180 | -4/Garrison | Accompanied by 3 allies 13215 | -4/Garrison | Destroyed 7 combat bots 13216 | -4/Garrison | Lost 5 allies 13229 | -4/Garrison | Garrison Relay disabled 13240 | -4/Garrison | Triggered checkpoint 13474 | -4/Garrison | Spotted B-86 Titan 13481 | -4/Garrison | Hijacked Titan 7a control node with streamctrl_high 13484 | -4/Garrison | Triggered checkpoint 13558 | -4/Garrison | Destroyed Titan 7a 13652 | -4/Garrison | Triggered checkpoint 13677 | -4/Garrison | Garrison Relay disabled 13686 | -4/Garrison | Triggered checkpoint 13695 | -4/Garrison | Discovered new exit (range 9) 13703 | -4/Garrison | Spotted B-86 Titan 13707 | -4/Garrison | Rewired B-90 Cyclops 13824 | -4/Garrison | Triggered checkpoint 13828 | -4/Garrison | Garrison Relay disabled 13840 | -4/Garrison | Discovered new exit (range 43) 13840 | -4/Garrison | Discovered new exit (range 18) 13840 | -4/Garrison | Discovered new exit (range 65) 13840 | -4/Garrison | Discovered new exit (range 26) 13878 | -4/Garrison | Triggered checkpoint 13904 | -4/Garrison | Triggered checkpoint 13939 | -4/Garrison | Rescued a captive Derelict 13954 | -4/Garrison | Expanded RIF knowledge: Program Shield 13958 | -4/Garrison | Garrison Relay disabled 14065 | -4/Garrison | Garrison Relay disabled 14150 | -4/Garrison | Triggered checkpoint 14248 | -4/Garrison | Entered Factory 14248 | -4/Factory | Accompanied by 16 allies 14666 | -4/Factory | Identified exit to Garrison 14673 | -4/Factory | Garrison activated, responded to threat 14729 | -4/Factory | Lost 3 allies 14748 | -4/Factory | First assault squad dispatched 14760 | -4/Factory | Build established: Commander-Mutant 14890 | -4/Factory | Lost 10 allies 15023 | -4/Factory | Discovered new exit (range 32) 15158 | -4/Factory | Build established: Botlord-Mutant 15181 | -4/Factory | Entered Research 15181 | -3/Research | Evolved 2 slots: Utility x1, Weapon x1 15197 | -3/Research | Found Gamma Bomb Array 15234 | -3/Research | Identified exit to Research 15234 | -3/Research | Identified exit to Quarantine 15529 | -3/Research | Identified exit to Garrison 15649 | -3/Research | Spotted B-86 Titan 15751 | -3/Research | Identified exit to Garrison 15758 | -3/Research | Entered Garrison 15776 | -3/Garrison | Build established: Botlord-Sprinter 15803 | -3/Garrison | Rescued a captive Derelict 15804 | -3/Garrison | Rescued a captive Derelict 15836 | -3/Garrison | Triggered checkpoint 15836 | -3/Garrison | Spotted B-86 Titan 15840 | -3/Garrison | Triggered checkpoint 15850 | -3/Garrison | Garrison Relay disabled 15852 | -3/Garrison | Triggered checkpoint 15858 | -3/Garrison | Triggered checkpoint 15862 | -3/Garrison | Triggered checkpoint 15870 | -3/Garrison | Garrison Relay disabled 15918 | -3/Garrison | H-XX Assembler disabled 15938 | -3/Garrison | Lost 3 allies 16078 | -3/Garrison | Lost 14 allies 16153 | -3/Garrison | Destroyed B-86 Titan 16203 | -3/Garrison | Garrison Relay disabled 16219 | -3/Garrison | Expanded RIF knowledge: Threat Obfuscation 16222 | -3/Garrison | Discovered new exit (range 15) 16227 | -3/Garrison | Identified exit to Research 16317 | -3/Garrison | Entered Research 16557 | -3/Research | Spotted B-86 Titan 16608 | -3/Research | Lost 5 parts (1n3u1w) 16694 | -3/Research | Discovered exit to Research (range 9) 16697 | -3/Research | Entered another Research area 16697 | -2/Research | Evolved 2 slots: Propulsion x1, Utility x1 16874 | -2/Research | Destroyed 7 combat bots 16892 | -2/Research | Central database locked down 16905 | -2/Research | Identified exit to Access 16914 | -2/Research | Lost 3 allies 16969 | -2/Research | Entered Access 16969 | -1/Access | Evolved 2 slots: Propulsion x1, Utility x1 17202 | -1/Access | Identified exit to Command 17270 | -1/Access | Identified exit to Surface 17326 | -1/Access | Spotted B-99 Colossus 17478 | *** | Escaped! Last Messages --------------- 17460_ Penetrated by Slug. 17461_ Slug penetrates C-57 Dissector. 17461_ Slug penetrates Wall. 17464_ Adv. Datajack+ severed. 17466_ Penetrated by Slug. 17466_ Slug penetrates C-57 Dissector. 17467_ CL2GCXLDAYP81V5TJ6UO 17469_ Hacking Suite destroyed. 17469_ Connecting with Terminal... >>Open(Door) Sealed Barrier opened. 17469_ ALERT: Suspicious activity at Terminal A001. Dispatching Investigation squad. 17470_ Adv. Weight Redist. System destroyed. 17470_ Main Access Shell breached. 17474_ The Access Shell folds into the floor. 17474_ K-01 Serf cleans the Terminal. 17476_ Structural Scanner destroyed. 17476_ System corrupted by crushing effect (+1). 17476_ Knocked back. Map ----- +----------------------------------------------------+ | ???????????????????????????????????????????? ##### | | ???????????????????????????????????????????? # ]]] | | ???????????????????????????????????????????? # ]] | | ???????????????????????????????????????????? # ]] | | ?????????????????????????????????????????????? | | ??????????????????????????????????????????????? | | ??????????????????????????????????????????????? | | ???????????????????????????????????????????????? | | ?????????????????????????????????????????????# | | ?????????????##################### ####+ | | ?????????????#######################+########## | | ????????????? h "" | | ????????????? k w pp p/ "T | | ?????????????????#### ""#####+########## | | ?????????????????#### ""### ### | | ???????????????????## ""### ????### | | ???????????????????## T### g ???## | | ???????????????????## ""### ### | | ??????????????????### ""### g ### | | ??????????????????### ""### ### | | ??????????????????## ## " ### | | ??????????????????### ### """ g ## | | ??????????????????### ### """ + | | ???????????????????## ### " ## | | ???????????????????## c ### ??? ## | | ???????????????????## cc @" ### ???? ##### | | ?????????????w?????## "" ### ????? ##### | | ???????????????????## ######??????????### | | ???????????????????## ######?????????? | | ???????????????????## ##????????????????? | | ???????????????????##""""""""""##????????????????? | | ???????????????????##"????????"##????????????????? | | ?????????????????????????????????????????????????? | | ?????????????????????????????????????????????????? | | ?????????????????????????????????????????????????? | | ??????????????????????BB????BB????????????## | | ??????????????????????BB????BB????????????######## | | ??????????????????????????????????????????## | | ??????????????????????????????????????????## * = | | ??????????????????????????????????????????## | | ??????????????????????????????????????????## | | ??????????????????????????????????????????######## | | ??????????????????????????????????????????######## | | ?????????????????????????????????????????????????? | | ?????????????????????????????????????????????????? | | ?????????????????????????????????????????????????? | | ?????????????????????????????????????????????????? | | ?????????????????????????????????????????????????? | | ?????????????????????????????????????????????????? | | ?????????????????????????????????????????????????? | +----------------------------------------------------+ Best States ------------- Heat Dissipation 74 Coolant Potential 120 Energy Generation 25 Energy Capacity 340 Matter Stores 300 Matter Capacity 300 Sight Range 20 Robot Scan Range 14 Terrain Scan Range 16 Terrain Scan Density 10 Jamming Range 16 Additional Mass Support 9 Armor Coverage 600 Resistance: KI 25 Power Shielding 33 Evasion (%) 76 Recoil Reduction 3 Offensive Hacking 48 Defensive Hacking 12 Relay Coupler Types 8 Relay Coupler Value 239 Item Schematics ----------------- None Robot Schematics ------------------ None Fabricated ------------ Impulse Thruster | x2 | -7/Factory | Preloaded Adv. Transmission Jammer | x2 | -5/Factory | Preloaded Repaired ---------- Antigrav Array | 11% | -5/Factory Studied --------- Deuterium Engine | -8/Materials | Hacked Datajack | -8/Materials | Hacked Gravmag Array | -5/Factory | Hacked Cmb. Gravmag System | -5/Factory | Hacked Coil Gun | -5/Factory | Hacked Smartbomb Launcher | -5/Factory | Hacked Lgt. Fission Core | -5/Factory | Hacked Antigrav Array | -4/Factory | Hacked Antigrav System | -4/Factory | Hacked Q-thruster | -3/Research | Hacked Impulse Thruster Array | -3/Research | Hacked Adv. Remote Datajack | -3/Research | Hacked Hyp. Gauss Cannon | -3/Research | Hacked Particle Reactor | -3/Research | Hacked Impulse Thruster | -3/Research | Hacked Adv. Datajack | -2/Research | Hacked Alien Tech Used ----------------- None Achievements -------------- Analysis Probe Construction Begets Destruction Fancy Inventory Hack The Planet Hackathon Hackerman Let Me Out Of Here May I Have Another? Mindtrick Plot Armor Sixth Sense Versatile Challenges ------------ None Game ------ Seed ScatterAuthchipLaser Manual? 0 Play Time 05:17:46 Cumulative 379.6 hours Start 2025.10.25 @ 11:19:24 End 2025.10.26 @ 15:33:17 Sessions 12 Manual Loads 0 Difficulty Rogue Special Mode None Game No. 160 Rogue 89 Adventurer 68 Explorer 3 Win Type 0 Total 32 Types 19/2/3/4/3/0/0/0/0/1 Lore% 78 Gallery% 75 Achievement% 49 Wizard Run 0 Options --------- Layout 0 ASCII 0 Keyboard 0 Movement Numpad Keybinds 0 Fullscreen 1 Font 24/Smallcaps Map View 76x50 Zoom Use 0% Tactical HUD 1 Map Filters NONE Filters NONE Steam 1 RUN: 7c1fcb15-c2e6-4020-8494-ddb274ddb91c